Workbook

Sheet Data
A1: GE Solvent Inventory
A3: SHOP | B3: DATE | C3: LSOL | D3: KGDC | E3: DRUMS | G3: KEY
A4: 6071 | B4: 2018-10-05 | D4: 133 | G4: DATE | H4: Week commencing date
A5: 6071 | B5: 2018-10-12 | C5: 18.95 | D5: 186 | G5: LSOL | H5: Litres of solvent delivered per week
A6: 6071 | B6: 2018-10-19 | D6: 142 | G6: KGDC | H6: Weight of clothes cleaned per week
A7: 6071 | B7: 2018-10-26 | D7: 187 | G7: DRUMS | H7: Number of still residue drums removed per week
A8: 6071 | B8: 2018-11-02 | C8: 37.9 | D8: 196
A9: 6071 | B9: 2018-11-09 | D9: 140
A10: 6071 | B10: 2018-11-16 | D10: 130
A11: 6071 | B11: 2018-11-23 | D11: 101
A12: 6071 | B12: 2018-11-30 | D12: 124
A13: 6071 | B13: 2018-12-07 | D13: 134
A14: 6071 | B14: 2018-12-14 | D14: 147
A15: 6071 | B15: 2018-12-21 | D15: 150
A16: 6071 | B16: 2018-12-28 | D16: 170
A17: 6071 | B17: 2019-01-04 | D17: 118
A18: 6071 | B18: 2019-01-11 | D18: 0
A19: 6071 | B19: 2019-01-18 | D19: 80
A20: 6071 | B20: 2019-01-25 | D20: 154
A21: 6071 | B21: 2019-02-01 | C21: 37.9 | D21: 155
A22: 6071 | B22: 2019-02-08 | D22: 139
A23: 6071 | B23: 2019-02-15 | D23: 145
A24: 6071 | B24: 2019-02-22 | D24: 126
A25: 6071 | B25: 2019-03-01 | D25: 129
A26: 6071 | B26: 2019-03-08 | D26: 148
A27: 6071 | B27: 2019-03-15 | D27: 15
A28: 6071 | B28: 2019-03-22 | D28: 151
A29: 6071 | B29: 2019-03-29 | D29: 145
A30: 6071 | B30: 2019-04-05 | D30: 167
A31: 6071 | B31: 2019-04-12 | C31: 37.9 | D31: 123
A32: 6071 | B32: 2019-04-19 | D32: 248
A33: 6071 | B33: 2019-04-26 | D33: 183
A34: 6071 | B34: 2019-05-03 | D34: 123
A35: 6071 | B35: 2019-05-10 | D35: 126
A36: 6071 | B36: 2019-05-17 | D36: 155
A37: 6071 | B37: 2019-05-24 | D37: 181
A38: 6071 | B38: 2019-05-31 | D38: 135
A39: 6071 | B39: 2019-06-07 | C39: 37.9 | D39: 184
A40: 6071 | B40: 2019-06-14 | D40: 180
A41: 6071 | B41: 2019-06-21 | D41: 131
A42: 6071 | B42: 2019-06-28 | D42: 101
A43: 6071 | B43: 2019-07-05 | D43: 165
A44: 6071 | B44: 2019-07-12 | D44: 128
A45: 6071 | B45: 2019-07-19 | D45: 119
A46: 6071 | B46: 2019-07-26 | D46: 162
A47: 6071 | B47: 2019-08-02 | D47: 130
A48: 6071 | B48: 2019-08-09 | D48: 142 | E48: 120
A49: 6071 | B49: 2019-08-16 | D49: 163
A50: 6071 | B50: 2019-08-23 | D50: 147
A51: 6071 | B51: 2019-08-30 | D51: 10
A52: 6071 | B52: 2019-09-06 | D52: 131
A53: 6071 | B53: 2019-09-13 | D53: 190
A54: 6071 | B54: 2019-09-20 | D54: 109
A55: 6071 | B55: 2019-09-27 | D55: 148
A56: Totals | C56: =SUM(C4:C55) -> 170.55 | D56: =SUM(D4:D55) -> 7226 | E56: =SUM(E4:E55) -> 120
A58: Solvent used(delivered) | D58: 170.55
A59: Weight of Dry Cleaning | D59: 7226
A60: Residue removed | D60: 120

Sheet Solv Calc
A1: Site: | B1: Branh 6071 Cannon Park Coventry | E1: Month and year: | G1: Oct 18 to Sept 19
A2: Machine:
A5: Week ending / Week No.
A9: Weight of work processed (kg) | G9: Monthly Total Weight (kg)
G10: a
A11: 7226 | G11: =IF(SUM(A11:F11)>0.1,SUM(A11:F11),0) -> 7226
A13: Solvent used (litres) | G13: Monthly Total (litres)
G14: c
A15: 170.55 | G15: =IF(SUM(A15:F15)>0.1,SUM(A15:F15),0) -> 170.55
A17: Estimated still residue for month (litres) | F17: d | G17: 120
A18: Note: Estimate the amount of residue collected so that a draft solvent usage figure can be obtained. You will need to adjust this figure from time to time so that the total for the year corresponds to your waste collection transfer notes.
A20: Still type / Allowance factor
A22: Method of still cleaning | D22: Waste Allowance Factor | F22: Total | G22: Allowance
D23: e | F23: d | G23: f
G24: = e × d
A25: Powder filter rake out | D25: 0.15 | F25: =IF(C25<>"",G17,0) -> 0 | G25: =IF(F25>0.1,D25*F25,0) -> 0
A26: Ecological powder rake out | C26: x | D26: 0.35 | F26: =IF(C26<>"",G17,0) -> 120 | G26: =IF(F26>0.1,D26*F26,0) -> 42
A27: Pumped out | D27: 0.5 | F27: =IF(C27<>"",G17,0) -> 0 | G27: =IF(F27>0.1,D27*F27,0) -> 0
A28: =IF((COUNTA(C25:C27))>1,"Error, you have selected both types of still cleaning","") -> 
B29: =IF((COUNTA(C25:C27))<1,"Select a method of still cleaning (see Instruction 2.5)","") -> 
A30: Nominal Monthly Solvent Use | D30: (litres) | E30: g = c - f | F30: =IF((G17+G15)>0.1,G15-(G25+G26+G27),0) -> 128.55
F31: =IF(F30<0," Please check that you have entered all sovent used this month in row 15","") -> 
A32: Solvent emission calculation
A34: Type of Solvent | D34: Factor: specific gravity of solvent | E34: Weight of work / litre of solvent | F34: Solvent emitted (should be 20g/kg or less) | G34: Weight of solvent used
D35: (g/l) | E35: (kg / l) | F35: g / kg | G35: (kg)
D36: h | E36: j | F36: k | G36: b
E37: = a ÷ g | F37: = h ÷ j | G37: = g × (h ÷ 1000)
A38: Perc | D38: 1600 | E38: =IF(C38<>"",IF(F$30<>0,G$11/F$30,""),"") ->  | F38: =IF(C38<>"",IF(F$30<>0,D38/E38,"0"),"") ->  | G38: =IF(C38<>"",IF(F$30<>0,F$30*D38/1000,"0"),"") -> 
A39: Siloxane | C39: x | D39: 970 | E39: =IF(C39<>"",IF(F$30<>0,G$11/F$30,""),"") -> 56.21159082 | F39: =IF(C39<>"",IF(F$30<>0,D39/E39,"0"),"") -> 17.25622751 | G39: =IF(C39<>"",IF(F$30<>0,F$30*D39/1000,"0"),"") -> 124.6935
A40: Hydrocarbon | D40: 970 | E40: =IF(C40<>"",IF(F$30<>0,G$11/F$30,""),"") ->  | F40: =IF(C40<>"",IF(F$30<>0,D40/E40,"0"),"") ->  | G40: =IF(C40<>"",IF(F$30<>0,F$30*D40/1000,"0"),"") -> 
A41: Other | E41: =IF(C41<>"",IF(F$30<>0,G$11/F$30,""),"") ->  | F41: =IF(C41<>"",IF(F$30<>0,D41/E41,"0"),"") ->  | G41: =IF(C41<>"",IF(F$30<>0,F$30*D41/1000,"0"),"") -> 
A42: =IF((COUNTA(C38:C41))>1,"Error, you have selected more than one type of solvent","") ->  | E42: =IF(SUM(E38:E41)<0,"Please ensure you have accounted for all solvent used this month","") ->  | F42: =IF(F41=0,"Enter the sg for your solvent","") -> 
B43: =IF((COUNTA(C38:C41))<1,"Select a solvent type (see Instruction 2.6)","") -> 
A44: =SUM(G38:G41) -> 124.6935 | B44: =IF(C38<>"",1600,970) -> 970 | D44: Solvent Usage Check : | G44: =IF(SUM(F38:F41)<=20,"OK", "PROBLEM") -> OK

Sheet DEFRA Formula
A1: Site: | B1: Branch 6071 Cannon Park Coventry | M1: Year: | N1: Oct 18 to Sept 19
A2: Month and Year | B2: Annual weight of work processed | F2: Annual weight of solvent used | J2: Annual solvent emitted per kg of work processed | K2: Estimated still residue
K3: (Use this to check the total for each method of still cleaning against your waste collection notes, adjust the final months figure as necessary to correspond)
B4: a | F4: b | J4: l
B5: (kg) | F5: (kg) | J5: = Total b × 1000 ÷ Total a | K5: (litres)
B6: Machine 1 | C6: Machine 2 | D6: Machine 3 | E6: Machine 4 | F6: Machine 1 | G6: Machine 2 | H6: Machine 3 | I6: Machine 4 | J6: (g/kg) | K6: Machine 1 | L6: Machine 2 | M6: Machine 3 | N6: Machine 4
A7: =IF('[1]Monthly machine 1'!G$1<>"",'[1]Monthly machine 1'!G$1,"") ->  | B7: =IF('[1]Monthly machine 1'!$G$11<>"",'[1]Monthly machine 1'!$G$11,"") -> 7226 | C7: =IF('[1]Monthly machine 2'!$G$11<>"",'[1]Monthly machine 2'!$G$11,"") -> 0 | D7: =IF('[1]Monthly machine 3'!$G$11<>"",'[1]Monthly machine 3'!$G$11,"") -> 0 | E7: =IF('[1]Monthly machine 4'!$G$11<>"",'[1]Monthly machine 4'!$G$11,"") -> 0 | F7: =IF('[1]Monthly machine 1'!$A$44<>"",'[1]Monthly machine 1'!$A$44,"") -> 124.6935 | G7: =IF('[1]Monthly machine 2'!$A$44<>"",'[1]Monthly machine 2'!$A$44,"") -> 0 | H7: =IF('[1]Monthly machine 3'!$A$44<>"",'[1]Monthly machine 3'!$A$44,"") -> 0 | I7: =IF('[1]Monthly machine 4'!$A$44<>"",'[1]Monthly machine 4'!$A$44,"") -> 0 | J7: =IF(B7<>0,IF(F7<>0,(SUM(F7:I7))*1000/(SUM(B7:E7)),""),"") -> 17.25622751 | K7: =IF('[1]Monthly machine 1'!$G$17<>"",'[1]Monthly machine 1'!$G$17,"") -> 120 | L7: =IF('[1]Monthly machine 2'!$G$17<>"",'[1]Monthly machine 2'!$G$17,"") ->  | M7: =IF('[1]Monthly machine 3'!$G$17<>"",'[1]Monthly machine 3'!$G$17,"") ->  | N7: =IF('[1]Monthly machine 4'!$G$17<>"",'[1]Monthly machine 4'!$G$17,"") -> 
A8: =IF('[1]Monthly machine 1'!O$1<>"",'[1]Monthly machine 1'!O$1,"") ->  | B8: =IF('[1]Monthly machine 1'!$O$11<>"",'[1]Monthly machine 1'!$O$11,"") -> 0 | C8: =IF('[1]Monthly machine 2'!$O$11<>"",'[1]Monthly machine 2'!$O$11,"") -> 0 | D8: =IF('[1]Monthly machine 3'!$O$11<>"",'[1]Monthly machine 3'!$O$11,"") -> 0 | E8: =IF('[1]Monthly machine 4'!$O$11<>"",'[1]Monthly machine 4'!$O$11,"") -> 0 | F8: =IF('[1]Monthly machine 1'!$I$44<>"",'[1]Monthly machine 1'!$I$44,"") -> 0 | G8: =IF('[1]Monthly machine 2'!$I$44<>"",'[1]Monthly machine 2'!$I$44,"") -> 0 | H8: =IF('[1]Monthly machine 3'!$I$44<>"",'[1]Monthly machine 3'!$I$44,"") -> 0 | I8: =IF('[1]Monthly machine 4'!$I$44<>"",'[1]Monthly machine 4'!$I$44,"") -> 0 | J8: =IF(B8<>0,IF(F8<>0,(SUM(F8:I8))*1000/(SUM(B8:E8)),""),"") ->  | K8: =IF('[1]Monthly machine 1'!$O$17<>"",'[1]Monthly machine 1'!$O$17,"") ->  | L8: =IF('[1]Monthly machine 2'!$O$17<>"",'[1]Monthly machine 2'!$O$17,"") ->  | M8: =IF('[1]Monthly machine 3'!$O$17<>"",'[1]Monthly machine 3'!$O$17,"") ->  | N8: =IF('[1]Monthly machine 4'!$O$17<>"",'[1]Monthly machine 4'!$O$17,"") -> 
A9: =IF('[1]Monthly machine 1'!W$1<>"",'[1]Monthly machine 1'!W$1,"") ->  | B9: =IF('[1]Monthly machine 1'!$W$11<>"",'[1]Monthly machine 1'!$W$11,"") -> 0 | C9: =IF('[1]Monthly machine 2'!$W$11<>"",'[1]Monthly machine 2'!$W$11,"") -> 0 | D9: =IF('[1]Monthly machine 3'!$W$11<>"",'[1]Monthly machine 3'!$W$11,"") -> 0 | E9: =IF('[1]Monthly machine 4'!$W$11<>"",'[1]Monthly machine 4'!$W$11,"") -> 0 | F9: =IF('[1]Monthly machine 1'!$Q$44<>"",'[1]Monthly machine 1'!$Q$44,"") -> 0 | G9: =IF('[1]Monthly machine 2'!$Q$44<>"",'[1]Monthly machine 2'!$Q$44,"") -> 0 | H9: =IF('[1]Monthly machine 3'!$Q$44<>"",'[1]Monthly machine 3'!$Q$44,"") -> 0 | I9: =IF('[1]Monthly machine 4'!$Q$44<>"",'[1]Monthly machine 4'!$Q$44,"") -> 0 | J9: =IF(B9<>0,IF(F9>0,(SUM(F9:I9))*1000/(SUM(B9:E9)),""),"") ->  | K9: =IF('[1]Monthly machine 1'!$W$17<>"",'[1]Monthly machine 1'!$W$17,"") ->  | L9: =IF('[1]Monthly machine 2'!$W$17<>"",'[1]Monthly machine 2'!$W$17,"") ->  | M9: =IF('[1]Monthly machine 3'!$W$17<>"",'[1]Monthly machine 3'!$W$17,"") ->  | N9: =IF('[1]Monthly machine 4'!$W$17<>"",'[1]Monthly machine 4'!$W$17,"") -> 
A10: =IF('[1]Monthly machine 1'!AE$1<>"",'[1]Monthly machine 1'!AE$1,"") ->  | B10: =IF('[1]Monthly machine 1'!$AE$11<>"",'[1]Monthly machine 1'!$AE$11,"") -> 0 | C10: =IF('[1]Monthly machine 2'!$AE$11<>"",'[1]Monthly machine 2'!$AE$11,"") -> 0 | D10: =IF('[1]Monthly machine 3'!$AE$11<>"",'[1]Monthly machine 3'!$AE$11,"") -> 0 | E10: =IF('[1]Monthly machine 4'!$AE$11<>"",'[1]Monthly machine 4'!$AE$11,"") -> 0 | F10: =IF('[1]Monthly machine 1'!$Y$44<>"",'[1]Monthly machine 1'!$Y$44,"") -> 0 | G10: =IF('[1]Monthly machine 2'!$Y$44<>"",'[1]Monthly machine 2'!$Y$44,"") -> 0 | H10: =IF('[1]Monthly machine 3'!$Y$44<>"",'[1]Monthly machine 3'!$Y$44,"") -> 0 | I10: =IF('[1]Monthly machine 4'!$Y$44<>"",'[1]Monthly machine 4'!$Y$44,"") -> 0 | K10: =IF('[1]Monthly machine 1'!$AE$17<>"",'[1]Monthly machine 1'!$AE$17,"") ->  | L10: =IF('[1]Monthly machine 2'!$AE$17<>"",'[1]Monthly machine 2'!$AE$17,"") ->  | M10: =IF('[1]Monthly machine 3'!$AE$17<>"",'[1]Monthly machine 3'!$AE$17,"") ->  | N10: =IF('[1]Monthly machine 4'!$AE$17<>"",'[1]Monthly machine 4'!$AE$17,"") -> 
A11: =IF('[1]Monthly machine 1'!AM$1<>"",'[1]Monthly machine 1'!AM$1,"") ->  | B11: =IF('[1]Monthly machine 1'!$AM$11<>"",'[1]Monthly machine 1'!$AM$11,"") -> 0 | C11: =IF('[1]Monthly machine 2'!$AM$11<>"",'[1]Monthly machine 2'!$AM$11,"") -> 0 | D11: =IF('[1]Monthly machine 3'!$AM$11<>"",'[1]Monthly machine 3'!$AM$11,"") -> 0 | E11: =IF('[1]Monthly machine 4'!$AM$11<>"",'[1]Monthly machine 4'!$AM$11,"") -> 0 | F11: =IF('[1]Monthly machine 1'!$AG$44<>"",'[1]Monthly machine 1'!$AG$44,"") -> 0 | G11: =IF('[1]Monthly machine 2'!$AG$44<>"",'[1]Monthly machine 2'!$AG$44,"") -> 0 | H11: =IF('[1]Monthly machine 3'!$AG$44<>"",'[1]Monthly machine 3'!$AG$44,"") -> 0 | I11: =IF('[1]Monthly machine 4'!$AG$44<>"",'[1]Monthly machine 4'!$AG$44,"") -> 0 | K11: =IF('[1]Monthly machine 1'!$AM$17<>"",'[1]Monthly machine 1'!$AM$17,"") ->  | L11: =IF('[1]Monthly machine 2'!$AM$17<>"",'[1]Monthly machine 2'!$AM$17,"") ->  | M11: =IF('[1]Monthly machine 3'!$AM$17<>"",'[1]Monthly machine 3'!$AM$17,"") ->  | N11: =IF('[1]Monthly machine 4'!$AM$17<>"",'[1]Monthly machine 4'!$AM$17,"") -> 
A12: =IF('[1]Monthly machine 1'!AU$1<>"",'[1]Monthly machine 1'!AU$1,"") ->  | B12: =IF('[1]Monthly machine 1'!$AU$11<>"",'[1]Monthly machine 1'!$AU$11,"") -> 0 | C12: =IF('[1]Monthly machine 2'!$AU$11<>"",'[1]Monthly machine 2'!$AU$11,"") -> 0 | D12: =IF('[1]Monthly machine 3'!$AU$11<>"",'[1]Monthly machine 3'!$AU$11,"") -> 0 | E12: =IF('[1]Monthly machine 4'!$AU$11<>"",'[1]Monthly machine 4'!$AU$11,"") -> 0 | F12: =IF('[1]Monthly machine 1'!$AO$44<>"",'[1]Monthly machine 1'!$AO$44,"") -> 0 | G12: =IF('[1]Monthly machine 2'!$AO$44<>"",'[1]Monthly machine 2'!$AO$44,"") -> 0 | H12: =IF('[1]Monthly machine 3'!$AO$44<>"",'[1]Monthly machine 3'!$AO$44,"") -> 0 | I12: =IF('[1]Monthly machine 4'!$AO$44<>"",'[1]Monthly machine 4'!$AO$44,"") -> 0 | K12: =IF('[1]Monthly machine 1'!$AU$17<>"",'[1]Monthly machine 1'!$AU$17,"") ->  | L12: =IF('[1]Monthly machine 2'!$AU$17<>"",'[1]Monthly machine 2'!$AU$17,"") ->  | M12: =IF('[1]Monthly machine 3'!$AU$17<>"",'[1]Monthly machine 3'!$AU$17,"") ->  | N12: =IF('[1]Monthly machine 4'!$AU$17<>"",'[1]Monthly machine 4'!$AU$17,"") -> 
A13: =IF('[1]Monthly machine 1'!BC$1<>"",'[1]Monthly machine 1'!BC$1,"") ->  | B13: =IF('[1]Monthly machine 1'!$BC$11<>"",'[1]Monthly machine 1'!$BC$11,"") -> 0 | C13: =IF('[1]Monthly machine 2'!$BC$11<>"",'[1]Monthly machine 2'!$BC$11,"") -> 0 | D13: =IF('[1]Monthly machine 3'!$BC$11<>"",'[1]Monthly machine 3'!$BC$11,"") -> 0 | E13: =IF('[1]Monthly machine 4'!$BC$11<>"",'[1]Monthly machine 4'!$BC$11,"") -> 0 | F13: =IF('[1]Monthly machine 1'!$AW$44<>"",'[1]Monthly machine 1'!$AW$44,"") -> 0 | G13: =IF('[1]Monthly machine 2'!$AW$44<>"",'[1]Monthly machine 2'!$AW$44,"") -> 0 | H13: =IF('[1]Monthly machine 3'!$AW$44<>"",'[1]Monthly machine 3'!$AW$44,"") -> 0 | I13: =IF('[1]Monthly machine 4'!$AW$44<>"",'[1]Monthly machine 4'!$AW$44,"") -> 0 | K13: =IF('[1]Monthly machine 1'!$BC$17<>"",'[1]Monthly machine 1'!$BC$17,"") ->  | L13: =IF('[1]Monthly machine 2'!$BC$17<>"",'[1]Monthly machine 2'!$BC$17,"") ->  | M13: =IF('[1]Monthly machine 3'!$BC$17<>"",'[1]Monthly machine 3'!$BC$17,"") ->  | N13: =IF('[1]Monthly machine 4'!$BC$17<>"",'[1]Monthly machine 4'!$BC$17,"") -> 
A14: =IF('[1]Monthly machine 1'!BK$1<>"",'[1]Monthly machine 1'!BK$1,"") ->  | B14: =IF('[1]Monthly machine 1'!$BK$11<>"",'[1]Monthly machine 1'!$BK$11,"") -> 0 | C14: =IF('[1]Monthly machine 2'!$BK$11<>"",'[1]Monthly machine 2'!$BK$11,"") -> 0 | D14: =IF('[1]Monthly machine 3'!$BK$11<>"",'[1]Monthly machine 3'!$BK$11,"") -> 0 | E14: =IF('[1]Monthly machine 4'!$BK$11<>"",'[1]Monthly machine 4'!$BK$11,"") -> 0 | F14: =IF('[1]Monthly machine 1'!$BE$44<>"",'[1]Monthly machine 1'!$BE$44,"") -> 0 | G14: =IF('[1]Monthly machine 2'!$BE$44<>"",'[1]Monthly machine 2'!$BE$44,"") -> 0 | H14: =IF('[1]Monthly machine 3'!$BE$44<>"",'[1]Monthly machine 3'!$BE$44,"") -> 0 | I14: =IF('[1]Monthly machine 4'!$BE$44<>"",'[1]Monthly machine 4'!$BE$44,"") -> 0 | K14: =IF('[1]Monthly machine 1'!$BK$17<>"",'[1]Monthly machine 1'!$BK$17,"") ->  | L14: =IF('[1]Monthly machine 2'!$BK$17<>"",'[1]Monthly machine 2'!$BK$17,"") ->  | M14: =IF('[1]Monthly machine 3'!$BK$17<>"",'[1]Monthly machine 3'!$BK$17,"") ->  | N14: =IF('[1]Monthly machine 4'!$BK$17<>"",'[1]Monthly machine 4'!$BK$17,"") -> 
A15: =IF('[1]Monthly machine 1'!BS$1<>"",'[1]Monthly machine 1'!BS$1,"") ->  | B15: =IF('[1]Monthly machine 1'!$BS$11<>"",'[1]Monthly machine 1'!$BS$11,"") -> 0 | C15: =IF('[1]Monthly machine 2'!$BS$11<>"",'[1]Monthly machine 2'!$BS$11,"") -> 0 | D15: =IF('[1]Monthly machine 3'!$BS$11<>"",'[1]Monthly machine 3'!$BS$11,"") -> 0 | E15: =IF('[1]Monthly machine 4'!$BS$11<>"",'[1]Monthly machine 4'!$BS$11,"") -> 0 | F15: =IF('[1]Monthly machine 1'!$BM$44<>"",'[1]Monthly machine 1'!$BM$44,"") -> 0 | G15: =IF('[1]Monthly machine 2'!$BM$44<>"",'[1]Monthly machine 2'!$BM$44,"") -> 0 | H15: =IF('[1]Monthly machine 3'!$BM$44<>"",'[1]Monthly machine 3'!$BM$44,"") -> 0 | I15: =IF('[1]Monthly machine 4'!$BM$44<>"",'[1]Monthly machine 4'!$BM$44,"") -> 0 | K15: =IF('[1]Monthly machine 1'!$BS$17<>"",'[1]Monthly machine 1'!$BS$17,"") ->  | L15: =IF('[1]Monthly machine 2'!$BS$17<>"",'[1]Monthly machine 2'!$BS$17,"") ->  | M15: =IF('[1]Monthly machine 3'!$BS$17<>"",'[1]Monthly machine 3'!$BS$17,"") ->  | N15: =IF('[1]Monthly machine 4'!$BS$17<>"",'[1]Monthly machine 4'!$BS$17,"") -> 
A16: =IF('[1]Monthly machine 1'!CA$1<>"",'[1]Monthly machine 1'!CA$1,"") ->  | B16: =IF('[1]Monthly machine 1'!$CA$11<>"",'[1]Monthly machine 1'!$CA$11,"") -> 0 | C16: =IF('[1]Monthly machine 2'!$CA$11<>"",'[1]Monthly machine 2'!$CA$11,"") -> 0 | D16: =IF('[1]Monthly machine 3'!$CA$11<>"",'[1]Monthly machine 3'!$CA$11,"") -> 0 | E16: =IF('[1]Monthly machine 4'!$CA$11<>"",'[1]Monthly machine 4'!$CA$11,"") -> 0 | F16: =IF('[1]Monthly machine 1'!$BU$44<>"",'[1]Monthly machine 1'!$BU$44,"") -> 0 | G16: =IF('[1]Monthly machine 2'!$BU$44<>"",'[1]Monthly machine 2'!$BU$44,"") -> 0 | H16: =IF('[1]Monthly machine 3'!$BU$44<>"",'[1]Monthly machine 3'!$BU$44,"") -> 0 | I16: =IF('[1]Monthly machine 4'!$BU$44<>"",'[1]Monthly machine 4'!$BU$44,"") -> 0 | K16: =IF('[1]Monthly machine 1'!$CA$17<>"",'[1]Monthly machine 1'!$CA$17,"") ->  | L16: =IF('[1]Monthly machine 2'!$CA$17<>"",'[1]Monthly machine 2'!$CA$17,"") ->  | M16: =IF('[1]Monthly machine 3'!$CA$17<>"",'[1]Monthly machine 3'!$CA$17,"") ->  | N16: =IF('[1]Monthly machine 4'!$CA$17<>"",'[1]Monthly machine 4'!$CA$17,"") -> 
A17: =IF('[1]Monthly machine 1'!CI$1<>"",'[1]Monthly machine 1'!CI$1,"") ->  | B17: =IF('[1]Monthly machine 1'!$CI$11<>"",'[1]Monthly machine 1'!$CI$11,"") -> 0 | C17: =IF('[1]Monthly machine 2'!$CI$11<>"",'[1]Monthly machine 2'!$CI$11,"") -> 0 | D17: =IF('[1]Monthly machine 3'!$CI$11<>"",'[1]Monthly machine 3'!$CI$11,"") -> 0 | E17: =IF('[1]Monthly machine 4'!$CI$11<>"",'[1]Monthly machine 4'!$CI$11,"") -> 0 | F17: =IF('[1]Monthly machine 1'!$CC$44<>"",'[1]Monthly machine 1'!$CC$44,"") -> 0 | G17: =IF('[1]Monthly machine 2'!$CC$44<>"",'[1]Monthly machine 2'!$CC$44,"") -> 0 | H17: =IF('[1]Monthly machine 3'!$CC$44<>"",'[1]Monthly machine 3'!$CC$44,"") -> 0 | I17: =IF('[1]Monthly machine 4'!$CC$44<>"",'[1]Monthly machine 4'!$CC$44,"") -> 0 | K17: =IF('[1]Monthly machine 1'!$CI$17<>"",'[1]Monthly machine 1'!$CI$17,"") ->  | L17: =IF('[1]Monthly machine 2'!$CI$17<>"",'[1]Monthly machine 2'!$CI$17,"") ->  | M17: =IF('[1]Monthly machine 3'!$CI$17<>"",'[1]Monthly machine 3'!$CI$17,"") ->  | N17: =IF('[1]Monthly machine 4'!$CI$17<>"",'[1]Monthly machine 4'!$CI$17,"") -> 
A18: =IF('[1]Monthly machine 1'!CQ$1<>"",'[1]Monthly machine 1'!CQ$1,"") ->  | B18: =IF('[1]Monthly machine 1'!$CQ$11<>"",'[1]Monthly machine 1'!$CQ$11,"") -> 0 | C18: =IF('[1]Monthly machine 2'!$CQ$11<>"",'[1]Monthly machine 2'!$CQ$11,"") -> 0 | D18: =IF('[1]Monthly machine 3'!$CQ$11<>"",'[1]Monthly machine 3'!$CQ$11,"") -> 0 | E18: =IF('[1]Monthly machine 4'!$CQ$11<>"",'[1]Monthly machine 4'!$CQ$11,"") -> 0 | F18: =IF('[1]Monthly machine 1'!$CK$44<>"",'[1]Monthly machine 1'!$CK$44,"") -> 0 | G18: =IF('[1]Monthly machine 2'!$CK$44<>"",'[1]Monthly machine 2'!$CK$44,"") -> 0 | H18: =IF('[1]Monthly machine 3'!$CK$44<>"",'[1]Monthly machine 3'!$CK$44,"") -> 0 | I18: =IF('[1]Monthly machine 4'!$CK$44<>"",'[1]Monthly machine 4'!$CK$44,"") -> 0 | K18: =IF('[1]Monthly machine 1'!$CQ$17<>"",'[1]Monthly machine 1'!$CQ$17,"") ->  | L18: =IF('[1]Monthly machine 2'!$CQ$17<>"",'[1]Monthly machine 2'!$CQ$17,"") ->  | M18: =IF('[1]Monthly machine 3'!$CQ$17<>"",'[1]Monthly machine 3'!$CQ$17,"") ->  | N18: =IF('[1]Monthly machine 4'!$CQ$17<>"",'[1]Monthly machine 4'!$CQ$17,"") -> 
A19: Sub Totals | B19: =IF((SUM(B7:C18))>1,SUM(B7:B18),"") -> 7226 | C19: =IF((SUM(C7:C18))>1,SUM(C7:C18),"") ->  | D19: =IF((SUM(D7:D18))>1,SUM(D7:D18),"") ->  | E19: =IF((SUM(E7:E18))>1,SUM(E7:E18),"") ->  | F19: =IF((SUM(F7:F18))<>0,SUM(F7:F18),"") -> 124.6935 | G19: =IF((SUM(G7:G18))<>0,SUM(G7:G18),"") ->  | H19: =IF((SUM(H7:H18))<>0,SUM(H7:H18),"") ->  | I19: =IF((SUM(I7:I18))<>0,SUM(I7:I18),"") ->  | K19: =IF((SUM(K7:K18))>1,SUM(K7:K18),"") -> 120 | L19: =IF((SUM(L7:L18))>1,SUM(L7:L18),"") ->  | M19: =IF((SUM(M7:M18))>1,SUM(M7:M18),"") ->  | N19: =IF((SUM(N7:N18))>1,SUM(N7:N18),"") -> 
A21: Annual Spot Cleaning Correction Factor (see Note 1): | D21: Total annual weight of work processed | F21: Total annual weight of solvent used | L21: Annual total of solvent emitted per kg of work processed
A22: m | D22: n | F22: p | L22: q
D23: = Total a | F23: = Total b + m | L23: = p × 1000 ÷ n
A24: (lts) | D24: (kg) | F24: (kg) | L24: (g/kg)
A25: 6.25 | D25: =SUM(B7:E18) -> 7226 | F25: =SUM(F7:I18)+A25 -> 130.9435 | J25: Annual result | L25: =IF(D25>1,F25*1000/D25,"") -> 18.1211597
A27: Weight of work required to comply with regulations (kg): | D27: =F25*1000/20 -> 6547.175 | J27: Complies with Regulations? | L27: =IF(SUM($L$25)<=20,"YES", "NO") -> YES
